bitfinex/quotes_BTCUSD_20240918
["timestamp","ask_amount","ask_price","bid_price","bid_amount"]
[1726690293221,1.520959,59856.0,59852.0,0.0040542]
[1726690293482,0.79098591,59840.0,59839.0,0.4691]
[1726690293707,0.167117,59838.0,59828.0,0.00011]
[1726690293949,0.66440567,59838.0,59828.0,0.334398]
[1726690294167,0.66440567,59838.0,59832.0,0.167133]
[1726690294381,0.16305367,59838.0,59831.0,0.334474]
[1726690294598,0.66440567,59838.0,59832.0,0.167133]
[1726690294822,0.66440567,59838.0,59837.0,0.01184411]
[1726690295038,0.66440567,59838.0,59837.0,0.0179569]
[1726690295039,0.001,59838.0,59837.0,0.0179569]
[1726690295258,0.001,59838.0,59837.0,0.0610655]
[1726690295472,0.167115,59839.0,59837.0,0.0470655]
[1726690295693,0.334221,59841.0,59837.0,0.0470655]
[1726690295934,0.28964991,59844.0,59838.0,0.05484495]
[1726690295935,0.16305367,59840.0,59838.0,0.05484495]
[1726690296137,0.62385291,59844.0,59838.0,0.05484495]
[1726690296138,0.58488592,59843.0,59838.0,0.05484495]
[1726690296386,0.87450483,59849.0,59838.0,0.05484495]
[1726690296387,0.54032883,59849.0,59839.0,0.00802256]
[1726690296615,0.16305367,59848.0,59845.0,0.167096]
[1726690296885,0.167084,59851.0,59846.0,0.0501308]
[1726690297111,1.00255652,59853.0,59846.0,0.0501308]
[1726690297340,1.00255652,59853.0,59847.0,0.00802256]
[1726690297341,0.16305367,59852.0,59847.0,0.00802256]
[1726690297572,0.167085,59850.0,59842.0,0.334212]
[1726690297795,0.167085,59850.0,59848.0,0.00802256]
[1726690298011,0.167087,59849.0,59843.0,0.334205]
[1726690298251,0.501253,59850.0,59849.0,0.00802256]
[1726690298521,0.334168,59850.0,59842.0,0.167106]
[1726690298735,0.167097,59846.0,59842.0,0.167106]
[1726690299002,0.167093,59847.0,59843.0,0.00802256]
[1726690299232,0.167093,59847.0,59844.0,0.03422356]
[1726690299455,0.334176,59849.0,59844.0,0.03422356]
[1726690299456,0.167098,59845.0,59844.0,0.03422356]
[1726690299694,0.167096,59846.0,59844.0,0.03422356]
[1726690299921,0.33015167,59845.0,59844.0,0.00802256]
[1726690300190,0.99854367,59845.0,59844.0,0.00802256]
[1726690300417,0.79100191,59838.0,59831.0,0.0002]
[1726690300641,1.62252558,59838.0,59831.0,0.0002]
[1726690301104,1.95676058,59838.0,59831.0,0.0002]
[1726690301340,1.95676058,59838.0,59828.0,0.00011]
[1726690301341,0.45679291,59829.0,59828.0,0.00011]
[1726690301577,1.72270458,59829.0,59828.0,0.00011]
[1726690301831,0.501504,59820.0,59819.0,0.0039569]
[1726690302107,1.91252949,59820.0,59819.0,0.0038569]
[1726690302602,1.91252949,59820.0,59819.0,0.0037569]
[1726690302957,1.62287958,59820.0,59819.0,0.0037569]
[1726690303199,1.62287958,59820.0,59819.0,0.0032569]
[1726690303483,0.98044266,59820.0,59819.0,0.0032569]
[1726690303734,1.31477866,59820.0,59819.0,0.0032569]
[1726690304516,1.64911466,59820.0,59819.0,0.0032569]
[1726690304772,1.3145776,59820.0,59819.0,0.0032569]
[1726690305003,1.62267852,59820.0,59819.0,0.0092569]
[1726690305254,1.91232843,59820.0,59819.0,0.0032569]
[1726690305499,1.91532843,59820.0,59819.0,0.0032569]
[1726690305997,1.91232843,59820.0,59819.0,0.0032569]
[1726690306220,1.62467852,59820.0,59819.0,0.0032569]
[1726690306437,1.00069261,59820.0,59819.0,0.0032569]
[1726690306677,0.95600652,59820.0,59819.0,0.0032569]
[1726690306900,0.16505367,59820.0,59819.0,0.0032569]
[1726690307132,0.95620758,59820.0,59819.0,0.02062331]
[1726690307380,1.62487958,59820.0,59819.0,0.0032569]
[1726690307597,1.62287958,59820.0,59819.0,0.0032569]
[1726690307842,1.91252949,59820.0,59819.0,0.0032569]
[1726690308237,1.64911306,59820.0,59819.0,0.0092569]
[1726690308299,1.94803,59820.0,59819.0,0.0032569]
[1726690308519,1.94803,59820.0,59811.0,0.0002]
[1726690308520,1.300333,59812.0,59811.0,0.0002]
[1726690308716,1.300333,59812.0,59807.0,0.000821]
[1726690308717,0.836007,59808.0,59807.0,0.000821]
[1726690308974,1.33346367,59808.0,59807.0,0.000321]
[1726690309435,1.33346367,59808.0,59784.0,0.000822]
[1726690309436,1.170526,59802.0,59784.0,0.000822]
[1726690309663,0.79135491,59796.0,59784.0,0.000822]
[1726690309922,1.28887858,59796.0,59795.0,0.000722]
[1726690310158,1.62334858,59796.0,59795.0,0.000722]
[1726690310581,1.65159409,59796.0,59795.0,0.000722]
[1726690311030,1.64959409,59796.0,59795.0,0.000722]
[1726690311939,1.65459409,59796.0,59795.0,0.000722]
[1726690312165,1.64959409,59796.0,59795.0,0.000722]
[1726690312394,1.65859538,59796.0,59795.0,0.000722]
[1726690312618,1.65859538,59796.0,59795.0,0.005722]
[1726690312861,1.65859538,59796.0,59795.0,0.000722]
[1726690313084,1.32412538,59796.0,59795.0,0.000722]
[1726690313339,0.98065409,59796.0,59795.0,0.000722]
[1726690313584,0.98065409,59796.0,59778.0,0.0032332]
[1726690313585,0.167282,59779.0,59778.0,0.0032332]
[1726690313821,0.16305367,59795.0,59778.0,0.0032332]
[1726690314079,0.16305367,59794.0,59784.0,0.25071663]
[1726690314305,0.16305367,59794.0,59785.0,0.02841653]
[1726690314526,0.167246,59793.0,59785.0,0.02507166]
[1726690314742,0.3345,59791.0,59786.0,0.00546424]
[1726690315025,0.16726,59787.0,59786.0,0.00546424]
[1726690315236,0.28964991,59793.0,59787.0,0.00548591]
[1726690315476,0.28964991,59793.0,59783.0,0.0927]
[1726690315477,0.16305367,59792.0,59788.0,0.01727529]
[1726690315703,0.16305367,59792.0,59788.0,0.00548591]
[1726690315704,0.167254,59789.0,59788.0,0.00548591]
[1726690315966,0.16305367,59792.0,59788.0,0.00548591]
[1726690315967,0.167251,59791.0,59788.0,0.00548591]
[1726690316219,0.16305367,59790.0,59785.0,0.003]
[1726690316432,0.16305367,59790.0,59783.0,0.0927]
[1726690316433,0.16305367,59790.0,59789.0,0.00548591]
[1726690316654,0.33030567,59790.0,59784.0,0.167267]
[1726690316872,0.33030567,59790.0,59785.0,0.0594515]
[1726690317093,0.02624449,59789.0,59785.0,0.06493741]
[1726690317347,0.02624449,59789.0,59788.0,0.167257]
[1726690317561,0.334521,59787.0,59785.0,0.00548591]
[1726690317798,0.16305367,59789.0,59787.0,0.012]
[1726690318022,0.167257,59788.0,59787.0,0.012]
[1726690318243,0.167257,59788.0,59787.0,0.01101491]
[1726690318244,0.99934067,59788.0,59787.0,0.01101491]
[1726690318458,0.99934067,59788.0,59777.0,0.002]
[1726690318459,0.334522,59787.0,59778.0,0.1705162]
[1726690318673,0.16305367,59786.0,59778.0,0.0032332]
[1726690318945,0.167273,59783.0,59779.0,0.00544905]
[1726690319187,0.45692991,59780.0,59779.0,0.00544905]
[1726690319407,0.501847,59779.0,59778.0,0.0032332]
[1726690319682,1.33403067,59779.0,59778.0,0.0032332]
[1726690320581,0.99946567,59779.0,59778.0,0.0032332]
[1726690320658,1.33403067,59779.0,59778.0,0.0032332]
[1726690321259,1.36028196,59779.0,59778.0,0.0152332]
[1726690321418,1.36028196,59779.0,59778.0,0.0032332]
[1726690321724,1.36128196,59779.0,59778.0,0.0152332]
[1726690321866,1.02671696,59779.0,59778.0,0.0152332]
[1726690322091,1.02671696,59779.0,59778.0,0.0032332]
[1726690322092,0.69115196,59779.0,59778.0,0.0032332]
[1726690322314,1.02671696,59779.0,59778.0,0.0142332]
[1726690322766,1.36028196,59779.0,59778.0,0.0032332]
[1726690323577,1.69484696,59779.0,59778.0,0.0032332]
[1726690323821,1.69684696,59779.0,59778.0,0.0032332]
[1726690324043,1.69484696,59779.0,59778.0,0.0032332]
[1726690324287,1.535569,59778.0,59777.0,0.002]
[1726690324524,0.45695191,59772.0,59770.0,0.0043825]
[1726690324736,1.62381758,59772.0,59770.0,0.0043825]
[1726690324977,1.62381758,59772.0,59751.0,0.0002]
[1726690324978,0.167358,59752.0,59751.0,0.0002]
[1726690325214,1.66927567,59752.0,59751.0,0.0002]
[1726690325449,0.79180791,59742.0,59730.0,0.0043825]
[1726690325655,2.033279,59741.0,59730.0,0.0043825]
[1726690325880,2.19633267,59741.0,59730.0,0.0043825]
[1726690326233,2.01922082,59736.0,59735.0,0.000722]
[1726690326330,2.51908049,59736.0,59735.0,0.000622]
[1726690326550,2.9150868,59736.0,59735.0,0.000622]
[1726690326780,0.03,59724.0,59723.0,0.025822]
[1726690327023,1.47988558,59724.0,59723.0,0.025722]
[1726690327264,1.47988558,59724.0,59711.0,0.1]
[1726690327265,0.634411,59712.0,59711.0,0.1]
[1726690327486,0.634411,59712.0,59704.0,3e-07]
[1726690327487,0.213,59706.0,59704.0,3e-07]
[1726690327742,1.027632,59692.0,59681.0,0.0050096]
[1726690327972,1.362881,59682.0,59681.0,0.0050096]
[1726690328204,1.75297499,59682.0,59681.0,0.0050096]
[1726690328438,1.58091966,59682.0,59681.0,0.0050096]
[1726690328681,1.97602866,59682.0,59681.0,0.0050096]
[1726690328952,1.97602866,59682.0,59668.0,0.0032332]
[1726690328953,1.14284099,59672.0,59668.0,0.0032332]
[1726690329221,0.592773,59669.0,59668.0,0.0032332]
[1726690329492,1.47823099,59656.0,59655.0,4.101e-05]
[1726690329694,1.97653966,59656.0,59655.0,4.101e-05]
[1726690329934,1.97653966,59656.0,59635.0,0.03934837]
[1726690329935,0.167683,59636.0,59635.0,0.03934837]
[1726690330259,0.16305367,59636.0,59635.0,0.03934837]
[1726690330458,0.1,59655.0,59635.0,0.0442741]
[1726690330459,0.41859334,59642.0,59635.0,0.0442741]
[1726690330737,0.25092634,59642.0,59635.0,0.03934837]
[1726690330995,1.00606152,59641.0,59635.0,0.03934837]
[1726690331247,0.02630922,59647.0,59635.0,0.03934837]
[1726690331248,0.45009399,59640.0,59635.0,0.03934837]
[1726690331481,0.16305367,59640.0,59635.0,0.03934837]
[1726690331977,1.00606152,59646.0,59635.0,0.03934837]
[1726690331978,0.16305367,59636.0,59635.0,0.03934837]
[1726690332245,0.69610367,59636.0,59635.0,0.03934837]
[1726690332529,0.69610367,59636.0,59620.0,0.0066623]
[1726690332530,0.03,59634.0,59620.0,0.0027955]
[1726690332753,0.16305367,59636.0,59620.0,0.0027955]
[1726690332754,0.167726,59621.0,59620.0,0.0027955]
[1726690332980,0.16305367,59621.0,59620.0,0.0027955]
[1726690333688,0.1,59651.0,59620.0,0.0027955]
[1726690333910,1.48615551,59654.0,59634.0,0.167689]
[1726690333911,1.00606152,59635.0,59634.0,0.167689]
[1726690334227,1.00606152,59642.0,59628.0,0.03]
[1726690334228,1.00606152,59642.0,59641.0,0.167669]
[1726690334438,1.00606152,59642.0,59641.0,0.503008]
[1726690334696,0.16305367,59647.0,59646.0,0.502966]
[1726690334909,1.00606152,59654.0,59651.0,0.16764]
[1726690335162,1.00606152,59654.0,59653.0,0.167636]
[1726690335416,1.45615551,59667.0,59653.0,0.670544]
[1726690335691,1.45615551,59667.0,59642.0,0.023]
[1726690335692,1.00606152,59654.0,59642.0,0.023]
[1726690335923,0.0263025,59654.0,59641.0,0.0167669]
[1726690336145,0.16305367,59657.0,59656.0,0.502882]
[1726690336432,1.00606152,59664.0,59656.0,0.502882]
[1726690336671,1.00606152,59664.0,59663.0,1.173256]
[1726690336896,1.00606152,59673.0,59672.0,0.837912]
[1726690337121,1.00606152,59673.0,59672.0,1.173077]
[1726690337599,1.00606152,59691.0,59690.0,0.167532]
[1726690337844,0.06,59712.0,59670.0,0.023]
[1726690337845,0.334924,59715.0,59695.0,0.502554]
[1726690338101,0.03,59715.0,59695.0,0.502554]
[1726690338367,0.1713818,59696.0,59695.0,0.00583453]
[1726690338590,0.02995026,59696.0,59695.0,0.00583453]
[1726690338933,0.19300393,59696.0,59695.0,0.18485425]
[1726690339026,0.19300393,59696.0,59695.0,0.52571669]
[1726690339492,0.36051893,59696.0,59695.0,0.00582644]
[1726690339710,0.19300393,59696.0,59695.0,0.00664944]
[1726690339961,1.14564292,59696.0,59695.0,0.000823]
[1726690340463,1.84570292,59696.0,59695.0,0.000823]
[1726690340709,1.89641834,59696.0,59695.0,0.000823]
[1726690340932,1.58067292,59696.0,59695.0,0.000823]
[1726690341161,1.14564292,59696.0,59695.0,0.000823]
[1726690341626,1.48067292,59696.0,59695.0,0.000823]
[1726690342345,2.00570292,59696.0,59695.0,0.000823]
[1726690343528,2.00770292,59696.0,59695.0,0.000823]
[1726690343768,0.335137,59677.0,59652.0,0.335273]
[1726690344014,0.06,59690.0,59652.0,0.335273]
[1726690344015,0.03,59688.0,59676.0,0.25127522]
[1726690344248,0.335104,59683.0,59666.0,0.335197]
[1726690344473,1.00532824,59686.0,59667.0,0.0335197]
[1726690344474,0.167571,59677.0,59667.0,0.0335197]
[1726690344696,0.167575,59675.0,59667.0,0.0335197]
[1726690344920,1.00532824,59686.0,59667.0,0.0335197]
[1726690345159,1.17289524,59678.0,59662.0,0.335217]
[1726690345405,1.17289524,59678.0,59653.0,0.335271]
[1726690345406,0.16305367,59667.0,59653.0,0.335271]
[1726690345634,0.16305367,59663.0,59643.0,0.335327]
[1726690345878,0.335228,59661.0,59644.0,0.06520939]
[1726690346106,0.16305367,59660.0,59652.0,0.167637]
[1726690346339,0.16305367,59660.0,59646.0,0.002]
[1726690346558,0.16305367,59660.0,59653.0,0.00511623]
[1726690346824,1.00532824,59672.0,59658.0,0.002]
[1726690347058,1.00532824,59672.0,59663.0,0.03]
[1726690347059,1.00532824,59666.0,59663.0,0.03]
[1726690347272,1.00532824,59666.0,59659.0,0.0757]
[1726690347499,1.00532824,59666.0,59664.0,0.00511623]
[1726690347791,1.00532824,59672.0,59664.0,0.00511623]
[1726690348033,1.00532824,59672.0,59666.0,0.167599]
[1726690348273,1.00532824,59672.0,59659.0,0.0757]
[1726690348274,0.16305367,59671.0,59667.0,0.0167599]
[1726690348508,0.16305367,59671.0,59664.0,0.335206]
[1726690348751,0.16305367,59671.0,59659.0,0.410936]
[1726690349008,0.335093,59685.0,59660.0,0.0033517]
[1726690349231,1.00532824,59672.0,59671.0,0.167585]
[1726690349455,1.00532824,59680.0,59671.0,0.0167585]
[1726690349696,1.00532824,59674.0,59671.0,0.0167585]
[1726690349909,0.16305367,59673.0,59660.0,0.03]
[1726690350129,0.16305367,59673.0,59659.0,0.0757]
[1726690350394,0.16305367,59673.0,59663.0,0.167607]
[1726690350632,1.00532824,59672.0,59671.0,0.167585]
[1726690350854,1.00532824,59672.0,59666.0,0.335199]
[1726690351103,1.00532824,59680.0,59671.0,0.335169]
[1726690351367,0.02629535,59671.0,59668.0,0.335186]
[1726690351639,0.02629535,59671.0,59664.0,0.0169607]
[1726690351943,0.167567,59678.0,59662.0,0.33522]
[1726690352164,1.00532824,59672.0,59666.0,0.335194]
[1726690352407,1.16838191,59672.0,59670.0,0.167587]
[1726690352637,1.16838191,59672.0,59671.0,0.167585]
[1726690353144,0.16305367,59672.0,59655.0,0.03]
[1726690353394,0.167583,59672.0,59671.0,0.000824]
[1726690353630,0.837913,59672.0,59671.0,0.000824]
[1726690353912,0.28800699,59675.0,59671.0,0.000824]
[1726690354167,0.167583,59672.0,59671.0,0.000824]
[1726690354396,1.00096667,59672.0,59671.0,0.000824]
[1726690354874,0.16305367,59672.0,59671.0,0.000824]
[1726690355098,0.33063567,59672.0,59671.0,0.000824]
[1726690355314,0.167563,59679.0,59671.0,0.000824]
[1726690355562,0.41442996,59678.0,59674.0,0.167575]
[1726690355778,0.41442996,59678.0,59672.0,0.03873653]
[1726690356003,0.41442996,59678.0,59672.0,0.0336009]
[1726690356232,0.41442996,59678.0,59672.0,0.2011819]
[1726690356469,0.41442996,59678.0,59673.0,0.02533622]
[1726690356908,0.58199696,59678.0,59673.0,0.02533622]
[1726690357141,0.41442996,59678.0,59673.0,0.00513563]
[1726690357360,0.16305367,59678.0,59673.0,0.00513563]
[1726690357798,0.16305367,59678.0,59673.0,0.335157]
[1726690358037,0.335066,59690.0,59677.0,0.335137]
[1726690358261,0.25137629,59691.0,59678.0,0.03397591]
[1726690358262,0.25137629,59683.0,59678.0,0.03397591]
[1726690358486,0.16305367,59682.0,59675.0,0.335146]
[1726690358736,0.16305367,59682.0,59679.0,0.00457913]
[1726690358953,0.16305367,59682.0,59681.0,0.167557]
[1726690359171,0.02629178,59687.0,59684.0,0.167547]
[1726690359412,0.02629178,59687.0,59686.0,0.335086]
[1726690359668,0.02629178,59687.0,59686.0,0.502629]
[1726690359894,0.02629178,59687.0,59686.0,1.17736026]
[1726690360125,0.02629178,59687.0,59686.0,1.29529629]
[1726690360611,0.02629178,59687.0,59686.0,1.32875629]
[1726690360876,0.001648,59696.0,59695.0,1.172626]
[1726690361136,0.001648,59696.0,59695.0,0.502554]
[1726690361596,0.001648,59696.0,59695.0,0.83709]
[1726690361814,0.001648,59696.0,59695.0,1.30192053]
[1726690362047,0.001648,59696.0,59695.0,1.33192053]
[1726690362270,0.25127522,59708.0,59699.0,1.202545]
[1726690362500,0.25127522,59708.0,59707.0,0.837422]
[1726690362720,0.25127522,59708.0,59707.0,1.59582]
[1726690362960,0.25127522,59714.0,59713.0,1.205732]
[1726690363191,0.25127522,59714.0,59713.0,0.5191689]
[1726690363415,0.25127522,59714.0,59713.0,0.1842339]
[1726690363636,0.25117522,59720.0,59715.0,0.167461]
[1726690363858,0.16305367,59719.0,59716.0,0.167458]
[1726690364100,0.16305367,59719.0,59713.0,0.0167669]
[1726690364333,0.16305367,59719.0,59714.0,0.01721361]
[1726690364546,0.16305367,59719.0,59715.0,0.334923]
[1726690364793,0.25127522,59718.0,59714.0,0.01721361]
[1726690365035,0.16305367,59717.0,59705.0,0.334979]
[1726690365277,0.16305367,59717.0,59707.0,0.167483]
[1726690365517,0.33496,59709.0,59695.0,0.18953453]
[1726690365773,0.0032332,59723.0,59687.0,0.03]
[1726690365774,0.05729328,59737.0,59705.0,0.45009399]
[1726690366050,0.00946683,59746.0,59735.0,0.86703]
[1726690366324,0.0794,59751.0,59723.0,0.03]
[1726690366584,0.16735,59755.0,59732.0,0.03346]
[1726690366869,0.001648,59756.0,59735.0,0.86903]
[1726690367164,1.00482315,59751.0,59750.0,0.167364]
[1726690367389,1.00482315,59751.0,59750.0,0.502092]
[1726690367640,0.001648,59756.0,59744.0,0.03]
[1726690367882,0.001648,59756.0,59749.0,0.167366]
[1726690368138,0.001648,59756.0,59750.0,0.0502109]
[1726690368139,0.16470167,59756.0,59750.0,0.0502109]
[1726690368396,0.16470167,59756.0,59747.0,0.334744]
[1726690368914,0.16470167,59756.0,59744.0,0.334759]
[1726690369148,0.16470167,59756.0,59749.0,0.167366]
[1726690369394,0.001648,59756.0,59743.0,0.03]
[1726690369641,0.001648,59756.0,59748.0,0.167367]
[1726690369895,0.001648,59756.0,59744.0,0.012346]
[1726690369896,1.00482315,59754.0,59744.0,0.012346]
[1726690370170,0.001648,59756.0,59744.0,0.012346]
[1726690370171,0.334731,59750.0,59744.0,0.012346]
[1726690370400,0.334731,59750.0,59731.0,0.334832]
[1726690370401,0.49778767,59749.0,59731.0,0.334832]
[1726690370641,0.16305367,59749.0,59733.0,0.179756]
[1726690370895,0.334774,59742.0,59734.0,0.0514588]
[1726690371165,0.167412,59733.0,59724.0,0.167436]
[1726690371413,0.167412,59733.0,59712.0,0.45009399]
[1726690371414,0.16743,59727.0,59718.0,0.167452]
[1726690371684,0.10036384,59732.0,59722.0,0.16744]
[1726690371932,0.16743,59727.0,59719.0,0.0167452]
[1726690372196,0.167426,59728.0,59719.0,0.1841942]
[1726690372448,0.10085441,59730.0,59723.0,0.167437]
[1726690372696,0.10085441,59730.0,59723.0,0.167439]
[1726690372947,0.26827441,59730.0,59723.0,0.167439]
[1726690373200,0.26827441,59730.0,59724.0,0.05542386]
[1726690373450,0.10085441,59730.0,59724.0,0.05542386]
[1726690373944,0.167426,59728.0,59724.0,0.05542386]
[1726690374158,0.10085441,59730.0,59720.0,0.05191062]
[1726690374609,0.19369748,59728.0,59721.0,0.167444]
[1726690374885,0.02627148,59728.0,59724.0,0.167436]
[1726690375112,0.334777,59742.0,59725.0,0.00334833]
[1726690375340,0.0822,59749.0,59721.0,0.334889]
[1726690375341,1.00482315,59726.0,59721.0,0.334889]
[1726690375562,0.09987333,59738.0,59722.0,0.08368936]
[1726690375784,0.334824,59733.0,59724.0,0.167435]
[1726690376029,0.167417,59731.0,59724.0,0.167435]
[1726690376311,0.100504,59730.0,59725.0,0.05860064]
[1726690376530,0.0094359,59743.0,59726.0,0.00334826]
[1726690376747,1.43912314,59742.0,59731.0,0.334832]
[1726690376970,1.43912314,59742.0,59719.0,0.48009399]
[1726690376971,1.43912314,59742.0,59734.0,0.167407]
[1726690377191,1.43912314,59742.0,59732.0,0.0334832]
[1726690377416,0.167398,59738.0,59732.0,0.0334832]
[1726690377655,0.334786,59740.0,59733.0,0.167411]
[1726690377656,0.167392,59740.0,59733.0,0.167411]
[1726690377875,0.09924276,59739.0,59732.0,0.0334832]
[1726690378100,0.02626919,59737.0,59733.0,0.03683282]
[1726690378577,0.00164,59736.0,59733.0,0.03683282]
[1726690378798,0.00164,59736.0,59735.0,0.502218]
[1726690379042,0.10102288,59736.0,59723.0,0.334878]
[1726690379279,0.10102288,59736.0,59723.0,0.334879]
[1726690379487,0.10102288,59736.0,59725.0,0.334865]
[1726690379723,0.10102288,59736.0,59731.0,0.167414]
[1726690379984,0.167408,59734.0,59728.0,0.167424]
[1726690380216,0.00164,59736.0,59724.0,0.0334879]
[1726690380434,0.334862,59726.0,59725.0,0.00969479]
[1726690380663,0.167419,59731.0,59725.0,0.00969479]
[1726690380893,0.167419,59731.0,59714.0,0.00082]
[1726690380894,0.16746,59716.0,59714.0,0.00082]
[1726690381143,0.10078432,59726.0,59714.0,0.00082]
[1726690381387,0.10155532,59725.0,59717.0,0.334912]
[1726690381607,0.10155532,59725.0,59714.0,0.00082]
[1726690381608,0.10155532,59725.0,59718.0,0.0335732]
[1726690381849,0.10155532,59725.0,59714.0,0.00082]
[1726690381850,0.334898,59720.0,59714.0,0.00082]
[1726690382059,1.00482315,59732.0,59714.0,0.00082]
[1726690382060,0.10197593,59719.0,59714.0,0.00082]
[1726690382589,0.10197593,59719.0,59716.0,0.167457]
[1726690382848,0.10197593,59719.0,59717.0,0.05032]
[1726690383052,0.10197593,59719.0,59718.0,0.25118055]
[1726690383291,0.334861,59727.0,59721.0,0.167443]
[1726690383292,0.16743,59727.0,59721.0,0.167443]
[1726690383508,0.25118055,59728.0,59723.0,0.167438]
[1726690383727,0.02627675,59733.0,59724.0,0.0502321]
[1726690383728,0.25118055,59727.0,59724.0,0.0502321]
[1726690383973,0.10078432,59726.0,59714.0,0.00082]
[1726690384205,0.167434,59725.0,59720.0,0.167447]
[1726690384434,0.10078432,59726.0,59718.0,0.167451]
[1726690384435,0.16744,59723.0,59718.0,0.167451]
[1726690384658,0.10148522,59723.0,59719.0,0.0502366]
[1726690384911,0.25118055,59733.0,59719.0,0.25118055]
[1726690385157,0.167422,59729.0,59723.0,0.167437]
[1726690385379,0.10071424,59729.0,59721.0,0.334889]
[1726690385631,0.167409,59734.0,59724.0,0.00334844]
[1726690385862,0.167409,59734.0,59722.0,0.03382374]
[1726690385863,0.10179362,59736.0,59725.0,0.00334819]
[1726690386076,0.00164,59736.0,59735.0,0.167406]
[1726690386306,0.00164,59736.0,59735.0,0.0167406]
[1726690386539,0.00164,59736.0,59725.0,0.334864]
[1726690386784,0.00164,59736.0,59723.0,0.03346]
[1726690387022,0.00164,59736.0,59727.0,0.167427]
[1726690387226,0.167411,59733.0,59723.0,0.167439]
[1726690387454,0.10043392,59733.0,59724.0,0.0502335]
[1726690387693,0.10043392,59733.0,59723.0,0.167438]
[1726690388023,0.169043,59736.0,59727.0,0.03]
[1726690388024,0.00164,59736.0,59727.0,0.03]
[1726690388161,0.00164,59736.0,59731.0,0.023]
[1726690388425,0.00164,59736.0,59734.0,0.167408]
[1726690388677,0.00164,59736.0,59735.0,0.0755234]
[1726690388958,0.00164,59736.0,59735.0,0.2429294]
[1726690389182,0.00164,59736.0,59735.0,0.91590083]
[1726690389844,0.00164,59736.0,59735.0,1.0789545]
[1726690390207,0.00164,59736.0,59735.0,1.1089545]
[1726690390622,0.00164,59736.0,59735.0,1.1109545]
[1726690390841,0.001648,59756.0,59735.0,1.1109545]
[1726690390842,1.00455398,59751.0,59748.0,0.023]
[1726690391063,0.25104813,59749.0,59748.0,0.33808587]
[1726690391285,0.25269613,59756.0,59748.0,0.023]
[1726690391569,0.001648,59756.0,59751.0,0.023]
[1726690391780,0.001648,59756.0,59742.0,0.03]
[1726690392009,0.09913966,59756.0,59743.0,0.25104813]
[1726690392244,0.09913966,59756.0,59735.0,0.21557707]
[1726690392245,0.09742163,59755.0,59744.0,0.02510481]
[1726690392461,0.09742163,59755.0,59736.0,0.023]
[1726690392462,0.334738,59749.0,59736.0,0.023]
[1726690392685,0.167379,59745.0,59736.0,0.023]
[1726690392945,0.167368,59749.0,59738.0,0.023]
[1726690393150,0.334728,59750.0,59739.0,0.05963871]
[1726690393374,0.167376,59746.0,59739.0,0.05963871]
[1726690393596,0.167378,59745.0,59739.0,0.05963871]
[1726690394088,0.02626397,59748.0,59739.0,0.05963871]
[1726690394089,0.167387,59742.0,59739.0,0.05963871]
[1726690394305,0.02626397,59748.0,59736.0,0.023]
[1726690394562,0.0018364,59744.0,59735.0,0.0525234]
[1726690394800,0.0018364,59744.0,59716.0,0.0778]
[1726690394801,0.334828,59732.0,59716.0,0.0778]
[1726690395057,0.334828,59732.0,59707.0,0.069109]
[1726690395058,0.10099458,59731.0,59706.0,0.0778]
[1726690395310,0.10099458,59731.0,59701.0,0.45009399]
[1726690395311,0.83731,59715.0,59701.0,0.167499]
[1726690395561,1.172234,59715.0,59696.0,0.0778]
[1726690395773,1.27456046,59715.0,59695.0,0.03346]
[1726690396716,0.96591814,59715.0,59696.0,0.335027]
[1726690396935,0.96591814,59715.0,59695.0,0.03346]
[1726690397226,0.002,59708.0,59675.0,0.0782]
[1726690397458,0.0762,59697.0,59668.0,0.03]
[1726690397731,0.335133,59678.0,59668.0,0.03]
[1726690398010,0.33507,59689.0,59674.0,0.03]
[1726690398217,1.0041925,59682.0,59663.0,0.03]
[1726690398439,0.10765822,59681.0,59663.0,0.03]
[1726690400725,0.502747,59672.0,59671.0,0.000824]
[1726690400946,0.167582,59672.0,59671.0,0.000824]
[1726690401166,0.502747,59672.0,59671.0,0.000824]
[1726690401388,0.167578,59674.0,59671.0,0.000824]
[1726690401611,0.02629421,59675.0,59671.0,0.000824]
[1726690401845,0.167547,59685.0,59671.0,0.000824]
[1726690402071,0.25137207,59678.0,59672.0,0.03925126]
[1726690402292,0.25137207,59682.0,59672.0,0.03925126]
[1726690402514,0.41892807,59682.0,59672.0,0.03925126]
[1726690402739,0.25137207,59682.0,59674.0,0.167576]
[1726690402985,0.167552,59683.0,59675.0,0.00335102]
[1726690403228,0.167552,59683.0,59678.0,0.023]
[1726690403229,0.167553,59683.0,59678.0,0.023]
[1726690403444,1.34048462,59686.0,59671.0,0.335992]
[1726690403445,0.167548,59685.0,59673.0,0.00335098]
[1726690403666,0.167564,59679.0,59674.0,0.00335085]
[1726690403888,0.502747,59672.0,59671.0,0.000824]
[1726690404334,1.28143728,59672.0,59671.0,0.000824]
[1726690404829,0.94627228,59672.0,59671.0,0.000824]
[1726690405563,0.502747,59672.0,59671.0,0.000824]
[1726690406057,0.94627228,59672.0,59671.0,0.000824]
[1726690406335,1.00539562,59684.0,59671.0,0.000824]
[1726690406336,0.45009399,59686.0,59671.0,0.000824]
[1726690406600,0.25133627,59677.0,59671.0,0.000824]
[1726690406832,0.335147,59676.0,59671.0,0.000824]
[1726690407075,0.45009399,59686.0,59671.0,0.000824]
[1726690407076,0.335094,59685.0,59671.0,0.000824]
[1726690407305,1.0053872,59680.0,59673.0,0.167577]
[1726690407549,0.10744763,59684.0,59673.0,0.335158]
[1726690407783,1.0053872,59686.0,59679.0,0.335124]
[1726690408022,1.0053872,59692.0,59685.0,0.167546]
[1726690408251,1.0053872,59691.0,59690.0,0.167531]
[1726690408482,0.334972,59707.0,59690.0,0.167531]
[1726690408483,0.33497,59707.0,59690.0,0.18605367]
[1726690408706,0.167488,59706.0,59690.0,0.19053858]
[1726690408945,0.334952,59710.0,59696.0,0.167514]
[1726690408946,0.16749,59705.0,59696.0,0.167514]
[1726690409164,1.0053872,59699.0,59697.0,0.0167514]
[1726690409390,0.334931,59714.0,59700.0,0.167502]
[1726690409619,1.0053872,59702.0,59700.0,0.167502]
[1726690409861,1.1728662,59709.0,59701.0,0.167499]
[1726690410098,1.1728662,59709.0,59702.0,0.0502512]
[1726690410311,0.167482,59708.0,59702.0,0.0502512]